Cogmind - Beta 10.2 @@@ ROGUE MODE // 2021.08.04 @ 19:38:59 Player: Sanctumkeeper Result: Destroyed by G-34 Mercenary with Small Laser Performance ------------- Evolutions (0) 0 Regions Visited (4) 800 Robots Destroyed (20) 100 Value Destroyed (458) 458 Prototype IDs (27) 540 Alien Tech Used (0) 0 Bonus (314) 314 TOTAL SCORE: 2212 Bonus ------- Follower Combat Kills 14 Aligned with FarCom 300 Cogmind --------- Core Integrity 0/250 Matter 247/300 Energy 250/250 System Corruption 1% Temperature Cool (6) Movement Treading (180) Ox1 Location -9/Mines Parts ------- > --- POWER (1) -------- Ion Engine > --- PROPULSION (2) --- Light Treads Light Treads > --- UTILITY (2) ------ High-capacity Storage Unit High-capacity Storage Unit > --- WEAPON (2) ------- Light Assault Rifle Light Assault Rifle > --- INVENTORY (20) --- Ion Engine Light Nuclear Core Light Treads Light Treads Light Treads Small Storage Unit Large Storage Unit Large Storage Unit Large Storage Unit Modified TNC Light Armor Plating Light Armor Plating Light Armor Plating Guided Plasma Cannon Light Assault Rifle Peak State ------------ > --- POWER ------------ Ion Engine > --- PROPULSION ------- Light Treads Light Treads > --- UTILITY ---------- Large Storage Unit Large Storage Unit > --- WEAPON ----------- Light Assault Rifle Light Assault Rifle > --- INVENTORY -------- Ion Engine Light Nuclear Core Light Treads Light Treads Light Treads Light Treads Large Storage Unit Large Storage Unit Modified TNC Light Armor Plating Light Armor Plating Light Armor Plating Guided Plasma Cannon Light Assault Rifle Light Assault Rifle Light Assault Rifle [Rating: 10] Favorites ----------- Power Ion Engine Engine Ion Engine Propulsion Light Treads Treads Light Treads Wheel Wheel Utility Large Storage Unit Storage Large Storage Unit Weapon Light Assault Rifle Energy Gun EM Shotgun Ballistic Gun Light Assault Rifle Build | -11 -10 -10 -10 -9 ------- Run | Scr Mat Min Exi Min Slots Evolved . | . . . . . Power . | . . . . . Propulsion . | . . . . . Utility . | . . . . . Weapon . | . . . . . Parts Attached 26 | 6 13 2 2 3 Power 1 | 1 . . . . Engine 1 | 1 . . . . Core . | . . . . . Reactor . | . . . . . Propulsion 9 | 2 6 . . 1 Treads 8 | 1 6 . . 1 Leg . | . . . . . Wheel 1 | 1 . . . . Hover . | . . . . . Flight . | . . . . . Utility 6 | 1 3 . 2 . Device . | . . . . . Storage 6 | 1 3 . 2 . Processor . | . . . . . Hackware . | . . . . . Protection . | . . . . . Artifact . | . . . . . Weapon 10 | 2 4 2 . 2 Energy Gun 2 | 1 1 . . . Energy Cannon . | . . . . . Ballistic Gun 8 | 1 3 2 . 2 Ballistic Cannon . | . . . . . Launcher . | . . . . . Special Weapon . | . . . . . Impact Weapon . | . . . . . Slashing Weapon . | . . . . . Piercing Weapon . | . . . . . Special Melee Weapon . | . . . . . Unidentified Prototypes . | . . . . . Parts Lost 7 | . 2 2 . 3 Power . | . . . . . Propulsion 3 | . 2 . . 1 Utility . | . . . . . Weapon 4 | . . 2 . 2 Highest Loss Streak 3 | . 1 2 . 3 Average Slot Usage (%) 97 | . 94 99 100 100 Engine 14 | . 14 14 14 14 Treads 25 | . 22 28 28 28 Wheel 2 | . 4 . . . Storage 25 | . 23 28 28 28 Energy Gun 8 | . 14 5 . . Ballistic Gun 19 | . 14 22 28 28 Naked Turns . | . . . . . Heaviest Build 71 | 12 41 41 71 . Greatest Support 40 | 10 40 40 40 . Greatest Overweight (x) 13 | 1 13 1 1 . Average Overweight (x) . | . 1 . . . Largest Inventory Capacity 20 | 6 16 16 20 20 Average Capacity 14 | 5 12 16 16 20 Most Carried 18 | 4 16 16 18 18 Average Carried 13 | 2 11 15 16 16 Final Capacity 20 | 6 16 16 20 20 Final Carried 18 | 4 15 16 18 15 Class Distribution -------------------- 97% | Mutant Dominant Class ---------------- Mutant | -10/Materials Mutant | -10/Mines Mutant | -10/Exiles Mutant | -9/Mines Resources | -11 -10 -10 -10 -9 ----------- Run | Scr Mat Min Exi Min Matter Collected 467 | 222 207 38 . . Remotely . | . . . . . Salvage Created 753 | . 483 183 . 87 Parts 46 | . 26 13 . 7 Haulers Intercepted 2 | . 2 . . . Recyclers Shooed . | . . . . . Parts Field Recycled . | . . . . . Retrieved Matter . | . . . . . Parts Self-Destructed . | . . . . . Prevented . | . . . . . Kills | -11 -10 -10 -10 -9 ------- Run | Scr Mat Min Exi Min Combat Hostiles Destroyed 16 | . 10 4 . 2 Guns 14 | . 8 4 . 2 AOE 2 | . 2 . . . Classes Destroyed 6 | . 4 1 . 1 Tunneler 1 | . . 1 . . Hauler 2 | . 2 . . . Recycler 1 | . 1 . . . Swarmer 6 | . 5 1 . . Grunt 9 | . 5 3 . 1 Brawler 1 | . . . . 1 Best Kill Streak 3 | . 3 3 . 2 Combat Bots Only 3 | . 3 2 . 2 Max Kills in Single Turn 2 | . 2 1 . 1 Gunslinging 1 | . 1 . . . Exploded 1 | . 1 . . . Melee . | . . . . . Uniques/NPCs Destroyed . | . . . . . Combat | -11 -10 -10 -10 -9 -------- Run | Scr Mat Min Exi Min Damage Taken 1142 | . 513 275 . 354 Core 255 | . 102 33 . 120 Absorbed by Shields . | . . . . . Core Remaining (%) 100 | 100 . . . . Volleys Fired 72 | . 47 16 . 9 Largest 2 | . 2 2 . 2 Hottest 65 | . 65 65 . 40 Shots Fired 141 | . 92 31 . 18 Gun 141 | . 92 31 . 18 Cannon . | . . . . . Launcher . | . . . . . Special . | . . . . . Kinetic 90 | . 47 25 . 18 Thermal . | . . . . . Explosive . | . . . . . Electromagnetic 51 | . 45 6 . . Robot Hit Streak 13 | . 13 10 . 11 Robot Miss Streak 4 | . 4 2 . 1 Penetration Max . | . . . . . Secondary Targets 5 | . 3 . . 2 Max Gunslinging Chain 1 | . 1 . . 1 Shots Hit Robots 107 | . 70 22 . 15 Core Hits 47 | . 28 14 . 5 Critical Hits 1 | . . 1 . . Critical Kills 1 | . . 1 . . Critical Parts Destroyed . | . . . . . Melee Attacks . | . . . . . Impact . | . . . . . Slashing . | . . . . . Piercing . | . . . . . Sneak Attacks . | . . . . . Combat Hostiles . | . . . . . Follow-up Attacks . | . . . . . Damage Inflicted 1206 | . 832 232 . 142 Guns 1084 | . 715 227 . 142 Cannons . | . . . . . Explosions 104 | . 104 . . . Melee . | . . . . . Ramming 18 | . 13 5 . . Kinetic 509 | . 231 136 . 142 Thermal 104 | . 104 . . . Explosive . | . . . . . Electromagnetic 575 | . 484 91 . . Impact . | . . . . . Slashing . | . . . . . Piercing . | . . . . . Highest Corruption 1 | . . . . 1 Average Corruption 1 | . . . . 1 Corruption Purged . | . . . . . Overload Shots . | . . . . . Overflow Damage 4 | . 4 . . . Projectiles . | . . . . . Explosions 4 | . 4 . . . Melee . | . . . . . Knockbacks . | . . . . . Impact . | . . . . . Kinetic . | . . . . . Secondary . | . . . . . Self-Inflicted Damage 73 | . 73 . . . Shots 3 | . 3 . . . Rammed 3 | . 2 1 . . Targets Rammed 3 | . 2 1 . . Kicked . | . . . . . Crushed . | . . . . . Highest Temperature 96 | . 96 83 . 24 Average Temperature 34 | . 39 24 . 9 Received Heat Transfer 384 | . 126 138 . 120 Siege Activations . | . . . . . Robots Corrupted . | . . . . . Combat Hostiles . | . . . . . Parts Fried 1 | . 1 . . . Impact Corruptions . | . . . . . Robots Melted . | . . . . . Combat Hostiles . | . . . . . Parts Melted . | . . . . . Heat Transferred 100 | . 100 . . . Parts Sabotaged . | . . . . . Parts Stolen . | . . . . . Parts Stripped . | . . . . . Power Chain Reactions 3 | . 3 . . . Missiles Intercepted . | . . . . . Alert | -11 -10 -10 -10 -9 ------- Run | Scr Mat Min Exi Min Peak Influence 204 | . 204 99 . 40 Initial 34 | . . 34 . . Average 52 | . 66 37 . 5 Maximum Alert Level 1 | . 1 . . . Low Security (%) 99 | 100 99 100 . 100 Level 1 . | . . . . . Level 2 . | . . . . . Level 3 . | . . . . . Level 4 . | . . . . . Level 5 . | . . . . . High Security . | . . . . . Max Security . | . . . . . Squads Dispatched 1 | . 1 . . . Investigation . | . . . . . Extermination . | . . . . . Reinforcement 1 | . 1 . . . Assault . | . . . . . Garrison . | . . . . . Intercept . | . . . . . Construction Impeded . | . . . . . Haulers Reinforced . | . . . . . Stealth | -11 -10 -10 -10 -9 --------- Run | Scr Mat Min Exi Min Distress Signals 1 | . 1 . . . Communications Jammed . | . . . . . Distress Signals . | . . . . . Times Spotted 31 | . 21 7 . 3 Peak Tracking Total 4 | . 4 3 . 3 Tactical Retreats 2 | . 2 . . . Traps | -11 -10 -10 -10 -9 ------- Run | Scr Mat Min Exi Min Traps Triggered 3 | . 3 . . . Indirectly . | . . . . . Trap Hack Attempts . | . . . . . Triggered . | . . . . . Disarmed . | . . . . . Reprogrammed . | . . . . . Reused . | . . . . . Traps Extracted . | . . . . . Installed . | . . . . . Triggered . | . . . . . Machines | -11 -10 -10 -10 -9 ---------- Run | Scr Mat Min Exi Min Machines Disabled . | . . . . . Max in Single Turn . | . . . . . Machines Sabotaged . | . . . . . Garrisons Compromised . | . . . . . Overloaded Fab Kills . | . . . . . Fab Network Shutdowns . | . . . . . Hacking | -11 -10 -10 -10 -9 --------- Run | Scr Mat Min Exi Min Machines Accessed 7 | . 5 . 2 . Terminals 5 | . 5 . . . Fabricators . | . . . . . Repair Stations . | . . . . . Recycling Units . | . . . . . Scanalyzers . | . . . . . Garrison Access . | . . . . . Total Hacks 21 | . 19 . 2 . Successful 14 | . 12 . 2 . Failed 7 | . 7 . . . Catastrophic . | . . . . . Database Lockouts . | . . . . . Manual 13 | . 12 . 1 . Terminals 19 | . 19 . . . Fabricators . | . . . . . Repair Stations . | . . . . . Recycling Units . | . . . . . Scanalyzers . | . . . . . Garrison Access . | . . . . . Terminal Hacks 9 | . 7 . 2 . Record 1 | . . . 1 . Robot Analysis 2 | . 2 . . . Prototype ID Bank 2 | . 2 . . . Registered Prototypes 1 | . 1 . . . Zone Layout 2 | . 2 . . . EX-Prototype ID Bank 1 | . . . 1 . Fabricator Hacks . | . . . . . Repair Station Hacks . | . . . . . Recycling Unit Hacks . | . . . . . Scanalyzer . | . . . . . Garrison Access Hacks . | . . . . . Unauthorized Hacks 5 | . 5 . . . Terminals 5 | . 5 . . . Track 2 | . 2 . . . Assimilate 1 | . 1 . . . Botnet 1 | . 1 . . . Operators 1 | . 1 . . . Fabricators . | . . . . . Repair Stations . | . . . . . Recycling Units . | . . . . . Scanalyzers . | . . . . . Garrison Access . | . . . . . Data Cores Recovered . | . . . . . Used . | . . . . . Hacking Detections 5 | . 5 . . . Full Trace Events . | . . . . . Feedback Events . | . . . . . Feedback Blocked . | . . . . . Robot Schematics Acquired . | . . . . . Robots Built . | . . . . . Matter . | . . . . . Time . | . . . . . Total Robot Build Rating . | . . . . . Part Schematics Acquired . | . . . . . Parts Built . | . . . . . Matter . | . . . . . Time . | . . . . . Total Part Build Rating . | . . . . . Parts Repaired . | . . . . . Time . | . . . . . Parts Recycled . | . . . . . Recycled Matter . | . . . . . Retrieved Matter . | . . . . . Retrieved Components . | . . . . . Parts Scanalyzed . | . . . . . Part Schematics Acquired . | . . . . . Parts Damaged . | . . . . . Bothacking | -11 -10 -10 -10 -9 ------------ Run | Scr Mat Min Exi Min Used RIF Installer . | . . . . . Robots Hacked . | . . . . . Non-combat . | . . . . . Combat . | . . . . . Robot Hacks Applied . | . . . . . Relay Couplers Released . | . . . . . Robots Rewired . | . . . . . Allies Hacked . | . . . . . Hacks Repelled . | . . . . . Allies | -11 -10 -10 -10 -9 -------- Run | Scr Mat Min Exi Min Total Allies 1 | . . 1 . . Largest Group 1 | . . 1 1 . Highest-Rated Group 31 | . . 31 31 . Highest-Rated Ally 31 | . . 31 31 . Total Orders . | . . . . . Ally Attacks 5 | . . 5 . . Total Damage 63 | . . 63 . . Kills 2 | . . 2 . . Allies Corrupted . | . . . . . Allies Melted . | . . . . . Intel | -11 -10 -10 -10 -9 ------- Run | Scr Mat Min Exi Min Robot Analysis Total 2 | . 2 . . . Derelict Logs Recovered 2 | . . 2 . . Drone Launches . | . . . . . Drone Recoveries . | . . . . . Exploration | -11 -10 -10 -10 -9 ------------- Run | Scr Mat Min Exi Min Turns Passed 2545 | 58 1179 792 490 26 Spaces Moved 1495 | 55 701 440 299 . Core 9 | 8 1 . . . Treads 1120 | . 381 440 299 . Legs . | . . . . . Wheels 366 | 47 319 . . . Hover . | . . . . . Flight . | . . . . . Fastest Speed 50 | 50 90 160 160 . Average Speed 150 | 81 139 167 162 . Slowest Speed 700 | 90 700 180 180 . Overloaded Moves . | . . . . . Propulsion Burnouts . | . . . . . Robots Hopped . | . . . . . Cave-ins Triggered . | . . . . . Exploration Rate (%) 52 | 3 98 87 70 3 Regions Visited 4 Branch Regions 3 Pre-discovered Areas 1 | . . . 1 . Known Exits Taken . | . . . . . Unknown Exits Taken 4 | 1 1 1 1 . Scrap Searched 1 | . . 1 . . Spaces Dug . | . . . . . Terrain Destroyed 15 | . 15 . . . Melee . | . . . . . Projectile . | . . . . . AOE 15 | . 15 . . . Terrain Rammed . | . . . . . Walls Destroyed . | . . . . . Machines Disabled . | . . . . . Actions | -11 -10 -10 -10 -9 --------- Run | Scr Mat Min Exi Min Total 1671 | 64 818 471 306 12 Wait 35 | . 31 4 . . Move 1491 | 54 700 439 298 . Hop . | . . . . . Pick Up 30 | 4 17 6 3 . Fast Attach 13 | 6 7 . . . Attach 7 | . 2 2 . 3 Detach . | . . . . . Swap 6 | . 4 . 2 . Drop 14 | . 8 3 3 . Fire 72 | . 47 16 . 9 Melee . | . . . . . Ram . | . . . . . Kick . | . . . . . Crush 3 | . 2 1 . . Escape Stasis . | . . . . . Rewire . | . . . . . Trap . | . . . . . Miscellaneous . | . . . . . Route ------- -11/Scrapyard -10/Materials (discovered 5 exits: [*Mat x3] / [*Min x2]) -10/Mines (discovered 3 exits: [*Mat x2] / *Exi) -10/Exiles -9/Mines History --------- Turn | Location | Event 19 | -11/Scrapyard | Discovered new exit (range 15) 59 | -11/Scrapyard | Entered Materials 120 | -10/Materials | Discovered new exit (range 6) 305 | -10/Materials | Discovered new exit (range 15) 311 | -10/Materials | Build established: Mutant 409 | -10/Materials | Discovered new exit (range 8) 588 | -10/Materials | Discovered new exit (range 10) 727 | -10/Materials | Discovered new exit (range 10) 1238 | -10/Materials | Entered Mines 1334 | -10/Mines | Learned Materials emergency access door positions 1544 | -10/Mines | Core integrity fell below 50% 1634 | -10/Mines | A weapon hastily lodged in a ceiling crevice suddenly fell to the ground 1693 | -10/Mines | Discovered new exit (range 10) 1796 | -10/Mines | Received a Mining Laser from a helpful Derelict 1913 | -10/Mines | Discovered new exit (range 11) 2023 | -10/Mines | Deemed a non-threat by the Exiles lab entrance 2023 | -10/Mines | Discovered new exit (range 5) 2030 | -10/Mines | Entered Exiles 2030 | -10/Exiles | Accompanied by 1 ally 2069 | -10/Exiles | Met 8R-AWN 2096 | -10/Exiles | Met EX-HEX 2182 | -10/Exiles | Met EX-DEC 2211 | -10/Exiles | Learned location of Zion (-7) 2238 | -10/Exiles | Met EX-BIN 2261 | -10/Exiles | Aligned with FarCom system 2262 | -10/Exiles | Given EX-Vault access code 2307 | -10/Exiles | Opened EX-Vault 2319 | -10/Exiles | Found Modified TNC 2324 | -10/Exiles | Found Gui. Plasma Cannon 2357 | -10/Exiles | Warned to stay clear of 0b10 Research branches 2498 | -10/Exiles | Discovered new exit (range 14) 2520 | -10/Exiles | Stole two prototypes: Modified TNC, Gui. Plasma Cannon 2520 | -10/Exiles | Entered Mines 2531 | -9/Mines | Core integrity fell below 20% 2546 | -9/Mines | Destroyed by G-34 Mercenary with Small Laser Last Messages --------------- the FarCom system will continue to maintain contact via our distributed network. EX-BIN: And don't even think about spreading that code around. We're gonna change it right after you leave. Most certainly not to something like 1234 which I did last time as a little joke and some thief managed to sneak in here and steal a few of HEX's prototypes. 02464_ Dropped Lrg. Storage Unit. 02474_ Acquired Sml. Storage Unit. 02498_ EXIT=FOUND LOCATION=UNKNOWN GOAL=ESCAPE 02520_ Receiving FarCom transmissions... 02522_ Lgt. Treads destroyed. 02530_ Lgt. Assault Rifle destroyed. 02530_ System corrupted by crushing effect (+1). 02541_ B-36 Bruiser destroyed. 02541_ Switching to secondary target: G-34 Mercenary. 02542_ Lgt. Assault Rifle destroyed. 02544_ G-34 Mercenary destroyed. 02544_ Switching to secondary target: G-34 Mercenary. Map ----- +----------------------------------------------------+ | ??????????????????????????????????????????? | | ??????????????????????????????????????????? | | ??????????????????????????????????????????? | | ??????????????????????????????????????????? | | ??????????????????????????????????????????? | | ??????????????????????????????????????????? | | ??????????????????????????????????????????? | | ??????????????????????????????????????????? | | ??????????????????????????????????????????? | | ??????????????????????????????????????????? | | ??????????????????????????????????????????? | | ?????????????? ??????????????????????????? | | ????????????? ?????????????????????????? | | ?????????????t ?????????????????????????? | | ?????????????? ?????????????????????????? | | ?????????????? ?????????????????????????? | | ?????????????? ?????????????????????????? | | ??????????????? ????????????????????????? | | ??????????????? ????????????????????????? | | ???????????????# ????????????????????????? | | ???????????????# ????????????????????????? | | ???????????????# ????????????????????????? | | ???????????????#!=###?????????????????????? | | ???????????????#[%=g##????????????????????? | | ???????????????# *%= #????????????????????? | | ???????????????# @ #????????????????????? | | ???????????????# #???????????????????? | | ???????????????# #???????????????????? | | ???????????????# ##???????????????????? | | ???????????????## ##????????????????????? | | ????????????????#####?????????????????????? | | ??????????????????????????????????????????? | | ??????????????????????????????????????????? | | ??????????????????????????????????????????? | | ??????????????????????????????????????????? | | ??????????????????????????????????????????? | | ??????????????????????????????????????????? | | ??????????????????????????????????????????? | | ??????????????????????????????????????????? | | ??????????????????????????????????????????? | | ??????????????????????????????????????????? | | | | | | | | | | | | | | | | | | | +----------------------------------------------------+ Best States ------------- Heat Dissipation 25 Energy Generation 10 Energy Capacity 250 Matter Stores 300 Matter Capacity 300 Sight Range 16 Terrain Scan Density 10 Evasion (%) 50 Recoil Reduction 2 Item Schematics ----------------- None Robot Schematics ------------------ None Fabricated ------------ Nothing Alien Tech Used ----------------- None Achievements -------------- None Challenges ------------ None Game ------ Seed AlloyBackupDoublenader Manual? 0 Play Time 00:11:30 Cumulative 178.3 hours Start 2021.08.04 @ 19:27:48 End 2021.08.04 @ 19:38:59 Sessions 1 Manual Loads 0 Difficulty Rogue Special Mode None Game No. 135 Rogue 135 Adventurer 0 Explorer 0 Win Type - Total 6 Types 5/0/0/0/0/0/0/1/0 Lore% 81 Gallery% 70 Achievement% 58 Wizard Run 0 Options --------- ASCII 0 Keyboard 1 Movement Arrows Keybinds 0 Fullscreen 1 Font 18/SmallcapsGlow Map View 76x50 Tactical HUD 1 Map Filters NONE Filters NONE Steam 1 RUN: 52e91fc5-2498-4fd9-a28c-da5fd2c3de6f